lending/lending_fUSD_20240510
["ID","MTS","AMOUNT","RATE_DAILY","PERIOD"]
[326770572,1715338232609,-1068.3857068,0.00013,2]
[326770577,1715338232646,-645.60729713,0.00013,2]
[326770580,1715338232660,-2880.36659732,0.00013,2]
[326770602,1715338237919,-31052.49999999,0.00013,2]
[326770603,1715338237932,-653.4,0.00013,2]
[326770604,1715338238177,-210682.52435623,0.00013,2]
[326770605,1715338238189,-758765.33458609,0.00013,2]
[326770606,1715338238200,-845.90977028,0.00013,2]
[326770607,1715338238213,-267.4029094,0.00013,2]
[326770608,1715338238293,-3478.42757392,0.00013,2]
[326770609,1715338238304,-885.30001992,0.00013,2]
[326770612,1715338240206,-8034.2865,0.00013,2]
[326770613,1715338240219,-12648.97638086,0.00013,2]
[326770614,1715338240231,-33411.08070538,0.00013,2]
[326770615,1715338240242,-542.76931822,0.00013,2]
[326770616,1715338240254,-664.35000011,0.00013,2]
[326770617,1715338240268,-16561.88203782,0.00013,2]
[326770618,1715338240280,-3400.27234837,0.00013,2]
[326770619,1715338240292,-745.83403878,0.00013,2]
[326770620,1715338240304,-511.81449438,0.00013,2]
[326770621,1715338240318,-523.74401794,0.00013,2]
[326770622,1715338240330,-1822.15500001,0.00013,2]
[326770623,1715338240341,-44149.84741515,0.00013,2]
[326770624,1715338240352,-880.54686907,0.00013,2]
[326770625,1715338240363,-930.0,0.00013,2]
[326770626,1715338240375,-360.27072336,0.00013,2]
[326770627,1715338240386,-58524.27659835,0.00013,2]
[326770628,1715338240475,-362.64439857,0.00013,2]
[326770636,1715338241368,-300.25019249,0.00013,2]
[326770639,1715338241392,-130694.92810049,0.00013,2]
[326770640,1715338241894,-9255.66764001,0.00013,2]
[326770641,1715338242938,-16617.04042999,0.00013,2]
[326770644,1715338243203,-177394.20310116,0.00013,2]
[326770645,1715338243215,-701.33067573,0.00013,2]
[326770646,1715338243226,-368.58260377,0.00013,2]
[326770647,1715338243537,-904883.17872608,0.00013,2]
[326770648,1715338243549,-655.16092701,0.00013,2]
[326770650,1715338243562,-75216.24021742,0.00013,2]
[326770652,1715338243578,-458978.12402182,0.00013,2]
[326770655,1715338243592,-485.56512759,0.00013,2]
[326770657,1715338243604,-496305.42919667,0.00013,2]
[326770760,1715338246236,-631.93,0.00013,2]
[326770789,1715339097181,-252.85452482,0.00012868,2]
[326770790,1715339097205,-217.14907971,0.00012886,2]
[326770791,1715339097230,-882.58199019,0.00012887,2]
[326770792,1715339097254,-150.0,0.00012897,2]
[326770793,1715339097278,-184.26389925,0.00012899,2]
[326770794,1715339097302,-173.54433881,0.000129,2]
[326770795,1715339097327,-313.65922066,0.000129,2]
[326770796,1715339097354,-165.17255466,0.0001299,2]
[326770797,1715339097384,-221.68353287,0.00012998,2]
[326770798,1715339097412,-1187.25025607,0.00012998,2]
[326770799,1715339097439,-155.35229815,0.00012998,2]
[326770800,1715339097471,-666.66111797,0.00012998,2]
[326770801,1715339097499,-523.29151109,0.00012998,2]
[326770802,1715339097523,-586.94146838,0.00012998,2]
[326770803,1715339097549,-155.87069556,0.00012998,2]
[326770804,1715339097573,-155.20216422,0.00012998,2]
[326770805,1715339097598,-163.09696048,0.00012999,2]
[326770806,1715339097624,-2397.39853928,0.00012999,2]
[326770807,1715339097654,-1448.02584783,0.00012999,2]
[326770808,1715339100127,-1062.73870927,0.00012998,2]
[326770809,1715339100148,-155.0,0.00012998,2]
[326770810,1715339100169,-155.0,0.00012998,2]
[326770811,1715339100190,-1825.41877995,0.00012999,2]
[326770812,1715339100212,-6801.84251078,0.00013,2]
[326770813,1715339101789,-10000.0,0.00012886,2]
[326770814,1715339103616,-10000.0,0.00012886,2]
[326770815,1715339105383,-10000.0,0.00012886,2]
[326770816,1715339108426,-10000.0,0.00012886,2]
[326770817,1715339111044,-9648.07335916,0.00012886,2]
[326770818,1715339111066,-351.92664084,0.00012998,2]
[326770819,1715339115723,-5091.36316708,0.00012998,2]
[326770820,1715339115759,-325.3335871,0.00012998,2]
[326770821,1715339115782,-409.81547371,0.00012998,2]
[326770822,1715339115806,-4173.48777211,0.00012998,2]
[326770823,1715339118937,-3331.78106335,0.00012998,2]
[326770824,1715339118958,-155.51234367,0.00012998,2]
[326770825,1715339118979,-195.24381204,0.00012998,2]
[326770826,1715339119000,-217.14907971,0.00012998,2]
[326770827,1715339119022,-156.9692701,0.00012998,2]
[326770828,1715339119045,-882.58199019,0.00012998,2]
[326770829,1715339119066,-1113.85342334,0.00012998,2]
[326770830,1715339119088,-181.19160963,0.00012998,2]
[326770831,1715339119111,-276.75517959,0.00012999,2]
[326770832,1715339119132,-192.61968187,0.00012999,2]
[326770833,1715339119153,-590.67911507,0.00012999,2]
[326770834,1715339119179,-163.00428046,0.00012999,2]
[326770835,1715339119201,-2542.65915098,0.00013,2]
[326770836,1715339122732,-409.26681316,0.00012997,2]
[326770837,1715339122753,-155.0,0.00012997,2]
[326770838,1715339123150,-9435.73318684,0.00013,2]
[326770839,1715339126701,-10000.0,0.00013,2]
[326770840,1715339129561,-409.81547371,0.00012999,2]
[326770841,1715339129583,-9590.18452629,0.00013,2]
[326770842,1715339134080,-237.2280325,0.00012998,2]
[326770843,1715339134101,-169.86348033,0.00012999,2]
[326770844,1715339134123,-9592.90848717,0.00013,2]
[326770845,1715339136306,-409.13283769,0.00012999,2]
[326770846,1715339136327,-9590.86716231,0.00012999,2]
[326770847,1715339138785,-217.64993364,0.00012999,2]
[326770848,1715339138808,-225.22921455,0.00012999,2]
[326770849,1715339138828,-882.58199019,0.00012999,2]
[326770850,1715339138850,-8674.53886162,0.00013,2]
[326770851,1715339146296,-2350.0,0.00013,2]
[326770853,1715339177731,-882.58199019,0.00012998,2]
[326770854,1715339177753,-237.12895808,0.00012999,2]
[326770855,1715339177775,-409.81547371,0.00012999,2]
[326770856,1715339177797,-7190.47357802,0.00013,2]
[326770857,1715339185536,-10000.0,0.00013,2]
[326770858,1715339216590,-313.65922066,0.000129,2]
[326770859,1715339216613,-344.25039563,0.00012999,2]
[326770860,1715339216634,-882.58199019,0.00012999,2]
[326770861,1715339216656,-8459.50839352,0.00013,2]
[326770881,1715339432177,-882.58199019,0.00012899,2]
[326770882,1715339432188,-1209.99849432,0.000129,2]
[326770883,1715339432197,-313.65922066,0.000129,2]
[326770884,1715339432206,-283.18274938,0.00012999,2]
[326770885,1715339432215,-6326.56631227,0.00013,2]
[326770886,1715339432227,-668.1020005,0.00013,2]
[326770887,1715339432238,-24715.89727582,0.00013,2]
[326770888,1715339432249,-650.0,0.00013,2]
[326770939,1715339432998,-5105.24343401,0.00013,2]
[326770941,1715339433009,-24368.79136036,0.00013,2]
[326770943,1715339433020,-1932.1207204,0.00013,2]
[326770945,1715339433031,-2870.0948315,0.00013,2]
[326770966,1715339438073,-210682.52435623,0.00013,2]
[326770967,1715339438085,-758765.33458609,0.00013,2]
[326770968,1715339438262,-1530.28393371,0.00013,2]
[326770969,1715339438273,-4852.6012,0.00013,2]
[326770970,1715339438284,-17936.93518799,0.00013,2]
[326770971,1715339438295,-30514.99344613,0.00013,2]
[326770972,1715339438306,-20437.45957246,0.00013,2]
[326770973,1715339438478,-63156.0,0.00013,2]
[326770992,1715339440233,-1641.30252,0.00013,2]
[326770993,1715339440249,-774.040005,0.00013,2]
[326770994,1715339440391,-303.27304,0.00013,2]
[326770995,1715339440403,-329.17,0.00013,2]
[326770996,1715339441877,-35284.18522708,0.00013,2]
[326770997,1715339441893,-13564.56965599,0.00013,2]
[326771044,1715339443829,-6545.67488489,0.00013,2]
[326771045,1715339443868,-1892.56313245,0.00013,2]
[326771046,1715339443880,-5893.04789687,0.00013,2]
[326771047,1715339443892,-463.3999995,0.00013,2]
[326771048,1715339443932,-451.45712628,0.00013,2]
[326771049,1715339443943,-1439.08969512,0.00013,2]
[326771050,1715339443955,-44792.30752185,0.00013,2]
[326771051,1715339443966,-508.1055248,0.00013,2]
[326771052,1715339443979,-3571.91327991,0.00013,2]
[326771053,1715339443988,-189.19244437,0.00013,2]
[326771054,1715339443998,-1278.71823,0.00013,2]
[326771055,1715339444008,-202.83709039,0.000137,2]
[326771056,1715339444019,-126.81390672,0.000137,2]
[326771057,1715339444029,-793.20378933,0.00015,2]
[326771058,1715339444038,-282.22154129,0.00015,2]
[326771059,1715339444048,-1209.99849432,0.00015183,2]
[326771060,1715339444058,-1226.23788858,0.000165,2]
[326771061,1715339444068,-150.99,0.000165,2]
[326771062,1715339444077,-499.99,0.000165,2]
[326771063,1715339444087,-150.99,0.000165,2]
[326771064,1715339444097,-2614.0,0.000169,2]
[326771065,1715339444108,-1094.99,0.0001726,2]
[326771066,1715339444119,-1209.99849432,0.00017467,2]
[326771067,1715339444129,-685.03452047,0.0001788,2]
[326771068,1715339444138,-685.03452042,0.0001788,2]
[326771069,1715339444147,-685.03452042,0.0001788,2]
[326771070,1715339444158,-3213.50375741,0.0001788,2]
[326771071,1715339444168,-3213.50375739,0.0001788,2]
[326771072,1715339444177,-3213.50375739,0.0001788,2]
[326771073,1715339444187,-1750.85107808,0.00018,3]
[326771074,1715339444196,-1278.71824,0.00018,2]
[326771075,1715339444205,-685.03452042,0.00018676,2]
[326771076,1715339444214,-3213.50375739,0.00018676,2]
[326771077,1715339444223,-313.65922066,0.00018886,2]
[326771078,1715339444233,-246.23346827,0.00018998,2]
[326771079,1715339444242,-237.06201959,0.00018998,2]
[326771080,1715339444251,-325.23660578,0.00018998,2]
[326771081,1715339444261,-348.01793411,0.00018998,2]
[326771082,1715339444270,-5000.0,0.00019,2]
[326771083,1715339444279,-155.0,0.00019,2]
[326771084,1715339444289,-523.37,0.00019151,2]
[326771085,1715339444298,-157.68,0.00019178,2]
[326771086,1715339444307,-159.47,0.00019178,2]
[326771087,1715339444317,-158.31,0.00019178,2]
[326771088,1715339444326,-157.57,0.00019178,2]
[326771089,1715339444335,-1209.99849432,0.0001975,2]
[326771090,1715339444344,-155.86825268,0.000199,2]
[326771091,1715339444353,-409.27016167,0.0002,2]
[326771092,1715339444363,-861.5014495,0.0002,2]
[326771093,1715339444372,-1529.39877402,0.0002,2]
[326771094,1715339444381,-800.0,0.0002,2]
[326771095,1715339444390,-800.0,0.0002,2]
[326771096,1715339444400,-800.0,0.00020493,2]
[326771097,1715339444411,-685.03452042,0.00020601,2]
[326771098,1715339444420,-3213.50375739,0.00020601,2]
[326771099,1715339444429,-437.84,0.00020626,2]
[326771100,1715339444440,-280.26,0.00020641,2]
[326771101,1715339444449,-166.38,0.00020641,2]
[326771102,1715339444459,-1739.57,0.00020703,2]
[326771103,1715339444469,-250.0,0.00020703,2]
[326771104,1715339444478,-1000.0,0.00020703,2]
[326771105,1715339444487,-225.0,0.00020759,2]
[326771106,1715339444497,-800.0,0.00020767,2]
[326771107,1715339444507,-200.0,0.00020948,2]
[326771108,1715339444516,-150.0,0.00021103,2]
[326771109,1715339444526,-200.0,0.00021103,2]
[326771110,1715339444536,-98.44572926,0.00021103,2]
[326771111,1715339444549,-137.20427074,0.00021103,2]
[326771112,1715339444558,-180.62,0.00021103,2]
[326771113,1715339444567,-500.0,0.00021103,2]
[326771114,1715339444580,-156.92644587,0.00021199,2]
[326771115,1715339444591,-196.04039587,0.00021248,2]
[326771116,1715339444601,-156.92644587,0.0002129,2]
[326771117,1715339444610,-404.55744165,0.00021364,2]
[326771118,1715339444622,-926.12701985,0.00021364,2]
[326771119,1715339444635,-15663.0855385,0.00021364,2]
[326771120,1715339444645,-250.0,0.0002137,2]
[326771121,1715339444655,-153.09837625,0.00021458,2]
[326771122,1715339444665,-196.04039587,0.00021605,2]
[326771123,1715339444674,-196.04039587,0.00021831,2]
[326771124,1715339444683,-156.92644587,0.00021859,2]
[326771125,1715339444692,-153.76208373,0.00021859,2]
[326771126,1715339444702,-2000.0,0.00021918,2]
[326771127,1715339444712,-250.0,0.00021918,2]
[326771128,1715339444722,-1209.99849432,0.00022033,2]
[326771129,1715339444733,-196.04039587,0.00022059,2]
[326771130,1715339444742,-153.09837625,0.00022226,2]
[326771131,1715339444751,-156.13726319,0.00022459,2]
[326771132,1715339444760,-685.03452042,0.00022527,2]
[326771133,1715339444770,-3213.50375739,0.00022527,2]
[326771134,1715339444780,-196.04039587,0.00022535,2]
[326771135,1715339444789,-196.04039587,0.00022689,2]
[326771136,1715339444799,-156.94793977,0.000227,2]
[326771137,1715339444808,-679.0,0.00022766,2]
[326771138,1715339444817,-150.24850325,0.00022774,2]
[326771139,1715339444825,-156.92644587,0.0002283,2]
[326771140,1715339444835,-156.92644587,0.0002292,2]
[326771141,1715339444844,-153.76208373,0.00022931,2]
[326771142,1715339444853,-1278.71824,0.00023,2]
[326771143,1715339444863,-153.09837625,0.00023143,2]
[326771144,1715339444872,-161.24280211,0.00023215,2]
[326771145,1715339444881,-1000.0,0.0002329,2]
[326771146,1715339444891,-153.76208373,0.00023321,2]
[326771147,1715339444901,-1000.0,0.000235,2]
[326771148,1715339444911,-153.76208373,0.00023536,2]
[326771149,1715339444920,-171.28,0.00023617,2]
[326771150,1715339444929,-196.04039587,0.00023896,2]
[326771151,1715339444938,-1072.80775125,0.00024,2]
[326771152,1715339444947,-432.59885389,0.00024,2]
[326771153,1715339444957,-196.04039587,0.00024066,2]
[326771154,1715339444966,-151.0,0.00024098,30]
[326771155,1715339444975,-150.161,0.00024128,2]
[326771156,1715339444985,-150.0,0.00024128,2]
[326771157,1715339444994,-288.6,0.00024128,2]
[326771158,1715339445003,-288.6,0.00024128,2]
[326771159,1715339445013,-1227.0,0.00024128,2]
[326771160,1715339445023,-1789.0,0.00024128,2]
[326771161,1715339445032,-1260.0,0.00024128,2]
[326771162,1715339445041,-542.0,0.00024128,2]
[326771163,1715339445051,-288.0,0.00024128,2]
[326771164,1715339445060,-5909.0,0.00024128,2]
[326771165,1715339445069,-2295.0,0.00024128,2]
[326771166,1715339445079,-1059.0,0.00024128,2]
[326771167,1715339445088,-180.0,0.0002423,2]
[326771168,1715339445098,-161.24280211,0.00024288,2]
[326771169,1715339445108,-1209.99849432,0.00024316,2]
[326771170,1715339445117,-153.09837625,0.00024404,2]
[326771171,1715339445127,-685.03452042,0.00024452,2]
[326771172,1715339445136,-3213.50375739,0.00024452,2]
[326771173,1715339445145,-151.61714229,0.00024497,2]
[326771174,1715339445155,-153.09837625,0.00024566,2]
[326771175,1715339445165,-151.0,0.0002459,7]
[326771176,1715339445174,-156.13726319,0.0002461,2]
[326771177,1715339445183,-500.0,0.00024657,2]
[326771178,1715339445193,-250.0,0.00024658,2]
[326771179,1715339445202,-156.94793977,0.00024711,2]
[326771180,1715339445211,-313.65922066,0.00024872,2]
[326771181,1715339445221,-3877.77520092,0.00024875,2]
[326771182,1715339445230,-717.00080578,0.00024902,2]
[326771183,1715339445240,-500.0,0.00024931,3]
[326771184,1715339445250,-9144.88180711,0.0002499,2]
[326771185,1715339445261,-925.8669637,0.00025,2]
[326771186,1715339445270,-12641.25830243,0.00025,2]
[326771187,1715339445280,-2219.93951707,0.00025,2]
[326771188,1715339445289,-182.98344383,0.00025,2]
[326771189,1715339445302,-288.96024261,0.00025,2]
[326771190,1715339445311,-155.0,0.00025,2]
[326771191,1715339445321,-1937.81762018,0.00025,2]
[326771192,1715339445330,-151.0,0.00025092,4]
[326771193,1715339445339,-500.0,0.00025205,4]
[326771194,1715339445349,-155.0,0.0002527,2]
[326771195,1715339445358,-155.0,0.0002527,2]
[326771196,1715339445368,-153.76208373,0.00025271,2]
[326771197,1715339445377,-868.43,0.00025342,2]
[326771198,1715339445387,-421.0,0.00025342,2]
[326771199,1715339445396,-868.43,0.00025342,2]
[326771200,1715339445405,-414.93,0.00025342,2]
[326771201,1715339445415,-868.43,0.00025342,2]
[326771202,1715339445425,-414.93,0.00025342,2]
[326771203,1715339445434,-868.43,0.00025342,2]
[326771204,1715339445443,-414.93,0.00025342,2]
[326771205,1715339445453,-414.93,0.00025342,2]
[326771206,1715339445462,-868.43,0.00025342,2]
[326771207,1715339445472,-156.94793977,0.00025447,2]
[326771208,1715339445480,-156.13726321,0.00025471,2]
[326771209,1715339445490,-500.0,0.00025479,5]
[326771210,1715339445499,-150.0,0.00025497,2]
[326771211,1715339445508,-179.9588821,0.00025525,2]
[326771212,1715339445518,-1038.22024424,0.00025525,2]
[326771213,1715339445527,-153.09837625,0.00025542,2]
[326771214,1715339445536,-153.76208373,0.00025567,2]
[326771215,1715339445546,-151.0,0.00025604,2]
[326771216,1715339445556,-500.0,0.00025753,6]
[326771217,1715339445565,-153.09837625,0.00025784,2]
[326771218,1715339445579,-153.09837625,0.00025788,2]
[326771219,1715339445590,-1000.0,0.000258,2]
[326771220,1715339445599,-1000.0,0.00025878,2]
[326771221,1715339445608,-166.67676363,0.00026012,2]
[326771222,1715339445617,-500.0,0.00026027,7]
[326771223,1715339445626,-426.82,0.00026027,2]
[326771224,1715339445635,-702.28,0.00026027,2]
[326771225,1715339445644,-150.0,0.00026027,2]
[326771226,1715339445656,-717.19,0.00026027,2]
[326771227,1715339445666,-163.24,0.00026027,2]
[326771228,1715339445675,-150.0,0.00026027,2]
[326771229,1715339445684,-150.0,0.00026027,2]
[326771230,1715339445693,-163.24,0.00026027,2]
[326771231,1715339445702,-163.24,0.00026027,2]
[326771232,1715339445711,-153.76208373,0.00026263,2]
[326771233,1715339445720,-500.0,0.00026301,8]
[326771234,1715339445729,-868.43,0.00026301,2]
[326771235,1715339445738,-414.93,0.00026301,2]
[326771236,1715339445747,-868.43,0.00026301,2]
[326771237,1715339445755,-414.93,0.00026301,2]
[326771238,1715339445764,-868.43,0.00026301,2]
[326771239,1715339445773,-414.93,0.00026301,2]
[326771240,1715339445782,-868.43,0.00026301,2]
[326771241,1715339445791,-196.04039587,0.00026366,2]
[326771242,1715339445800,-685.03452042,0.00026377,2]
[326771243,1715339445809,-3213.50375739,0.00026377,2]
[326771244,1715339445818,-153.83522319,0.00026408,2]
[326771245,1715339445827,-150.0,0.00026497,2]
[326771246,1715339445836,-50341.2434711,0.000265,4]
[326771247,1715339445845,-157.57,0.00026541,2]
[326771249,1715339445854,-157.31679609,0.00026553,2]
[326771251,1715339445863,-153.76208373,0.0002656,2]
[326771252,1715339445872,-500.0,0.00026575,9]
[326771253,1715339445881,-1209.99849432,0.000266,2]
[326771254,1715339445889,-27457.15732316,0.00026699,2]
[326771255,1715339445898,-161.24280211,0.00026707,2]
[326771256,1715339445907,-196.04039587,0.00026753,2]
[326771257,1715339445917,-153.83522319,0.00026789,2]
[326771258,1715339445926,-227.44140743,0.00026792,3]
[326771259,1715339445936,-2001.32534763,0.00026805,2]
[326771260,1715339445945,-500.0,0.00026849,10]
[326771261,1715339445954,-751.44,0.000269,2]
[326771262,1715339445963,-201.24213219,0.000269,2]
[326771263,1715339445972,-178.05690664,0.000269,5]
[326771264,1715339445982,-196.04039587,0.0002695,2]
[326771265,1715339445991,-154.20042216,0.00026957,2]
[326771266,1715339445999,-151.7,0.0002699,2]
[326771267,1715339446008,-151.7,0.0002699,2]
[326771268,1715339446017,-324686.24432772,0.00027,7]
[326771269,1715339446064,-315912.11274817,0.00027,7]
[326771270,1715339446073,-1568.80374452,0.00027,7]
[326771271,1715339446082,-1742.10655295,0.00027,2]
[326771272,1715339446091,-140976.79646742,0.00027,2]
[326771273,1715339446591,-650.65,0.00025342,2]
[326771276,1715339446603,-217.78,0.00025342,2]
[326771278,1715339446612,-414.93,0.00025342,2]
[326771280,1715339446621,-374.09,0.00027,2]
[326771284,1715339446652,-19041.96657256,0.00027,2]
[326771286,1715339446665,-687.50373564,0.00027,2]
[326771290,1715339447533,-197158.83212694,0.00027,2]
[326771291,1715339447546,-255.5202649,0.00027,2]
[326771292,1715339447559,-24134.82427014,0.00027,2]
[326771293,1715339447676,-431.96925012,0.00027,2]
[326771294,1715339447688,-629.27928532,0.00027,2]
[326771295,1715339447699,-392.68632983,0.00027,2]
[326771296,1715339447711,-2920.77516636,0.00027,2]
[326771297,1715339447724,-790.12443875,0.00027,2]
[326771303,1715340632125,-155.0,0.0001299,2]
[326771306,1715340632135,-256.26103104,0.0001299,2]
[326771309,1715340632146,-595.81774041,0.0001299,2]
[326771316,1715340632354,-30.50321874,0.0001299,2]
[326771317,1715340632363,-370.73299989,0.00012991,2]
[326771318,1715340632373,-352.4269964,0.00012997,2]
[326771319,1715340632385,-859.5697182,0.00012997,2]
[326771320,1715340632394,-4786.42259552,0.00012998,2]
[326771321,1715340632404,-150.0,0.00012998,2]
[326771322,1715340632413,-160543.86234318,0.00012999,2]
[326771323,1715340632423,-4309.18188136,0.00013,2]
[326771324,1715340632432,-298.56741175,0.00013,2]
[326771325,1715340632441,-302.66536665,0.000136,2]
[326771326,1715340632451,-499.99,0.00014187,2]
[326771327,1715340632461,-210.0,0.00014298,2]
[326771328,1715340632470,-1021.6383433,0.00014999,5]
[326771329,1715340632480,-2854.68,0.00014999,2]
[326771330,1715340632489,-37432.17503197,0.00015,2]
[326771331,1715340632499,-282.22154129,0.00015,2]
[326771332,1715340632508,-1226.23788858,0.000165,2]
[326771333,1715340632517,-2634.0,0.000169,2]
[326771334,1715340632526,-547.0,0.000169,2]
[326771335,1715340632536,-1061.82742862,0.00017258,2]
[326771336,1715340632545,-405.26692787,0.00017258,2]
[326771337,1715340632556,-308.13408762,0.00017259,2]
[326771339,1715340632565,-377.23070273,0.00017259,2]
[326771341,1715340632574,-2181.77493169,0.0001788,2]
[326771343,1715340632583,-2181.77493166,0.0001788,2]
[326771346,1715340632592,-2181.77493166,0.0001788,2]
[326771348,1715340632603,-573.8687326,0.0001788,2]
[326771350,1715340632612,-573.86873251,0.0001788,2]
[326771352,1715340632621,-573.86873251,0.0001788,2]
[326771354,1715340632631,-1750.85107808,0.00018,3]
[326771356,1715340632640,-573.86873251,0.0001867,2]
[326771358,1715340632650,-2181.77493166,0.00018671,2]
[326771360,1715340632659,-5000.0,0.00019,2]
[326771362,1715340632668,-155.0,0.00019,2]
[326771364,1715340632678,-160.08,0.00019178,2]
[326771366,1715340632687,-157.68,0.00019178,2]
[326771368,1715340632697,-3877.77520092,0.000192,2]
[326771370,1715340632706,-358.69017328,0.0002,2]
[326771372,1715340632716,-2602.28168975,0.0002,2]
[326771374,1715340632725,-5181.29379208,0.0002,2]
[326771376,1715340632734,-6233.58277713,0.0002,2]
[326771378,1715340632744,-155.0,0.0002,2]
[326771380,1715340632755,-861.5014495,0.0002,2]
[326771382,1715340632764,-155.0,0.0002,2]
[326771383,1715340632773,-1261.0570465,0.0002,2]
[326771384,1715340632784,-573.86873251,0.00020594,2]
[326771385,1715340632793,-2181.77493166,0.00020595,2]
[326771386,1715340632803,-2751.0,0.00020623,2]
[326771387,1715340632812,-150.0,0.00020672,2]
[326771388,1715340632822,-250.0,0.00020672,2]
[326771389,1715340632832,-200.0,0.0002084,2]
[326771390,1715340632843,-968.41,0.00020841,2]
[326771391,1715340632851,-1136.33,0.00020861,2]
[326771392,1715340632862,-1039.86,0.00020868,2]
[326771393,1715340632872,-364.86,0.0002089,2]
[326771394,1715340632883,-495.14759624,0.00021,2]
[326771395,1715340632892,-1500.0,0.00021079,2]
[326771396,1715340632902,-10836.21,0.00021135,2]
[326771397,1715340632913,-200.0,0.00021135,2]
[326771398,1715340632923,-500.0,0.00021135,2]
[326771399,1715340632933,-400.0,0.00021135,2]
[326771400,1715340632943,-250.0,0.00021135,2]
[326771401,1715340632954,-600.0,0.0002114,2]
[326771402,1715340632963,-732.42,0.00021304,2]
[326771403,1715340632972,-154.0995627,0.00021415,2]
[326771404,1715340632982,-155.06484873,0.00021422,2]
[326771405,1715340632991,-154.0995627,0.00021567,2]
[326771406,1715340633001,-218.98273529,0.00021631,2]
[326771407,1715340633010,-155.4837242,0.00021636,2]
[326771408,1715340633019,-321.58,0.0002167,2]
[326771409,1715340633029,-218.98273529,0.00021882,2]
[326771410,1715340633039,-3036.9569006,0.000219,2]
[326771411,1715340633052,-3728.20836686,0.000219,2]
[326771412,1715340633062,-250.0,0.00021918,2]
[326771413,1715340633071,-2000.0,0.00021918,2]
[326771414,1715340633080,-154.0995627,0.00021921,2]
[326771415,1715340633089,-165.44,0.00021924,2]
[326771416,1715340633100,-152.97300321,0.00021946,2]
[326771417,1715340633109,-155.06484873,0.00022059,2]
[326771418,1715340633120,-156.75889808,0.00022141,2]
[326771419,1715340633130,-205.0,0.0002216,2]
[326771420,1715340633140,-154.0995627,0.00022353,2]
[326771421,1715340633149,-800.0,0.00022356,2]
[326771422,1715340633160,-573.86873251,0.00022517,2]
[326771423,1715340633170,-2181.77493166,0.00022518,2]
[326771424,1715340633180,-152.97300321,0.00022648,2]
[326771425,1715340633189,-218.98273529,0.00022693,2]
[326771426,1715340633199,-205.0,0.0002272,2]
[326771427,1715340633213,-155.06484873,0.00022896,2]
[326771428,1715340633222,-218.98273529,0.00023213,2]
[326771429,1715340633231,-205.0,0.0002328,2]
[326771430,1715340633241,-154.0995627,0.0002331,2]
[326771431,1715340633251,-1755.83232869,0.00023398,2]
[326771432,1715340633261,-2001.32534763,0.000234,2]
[326771433,1715340633270,-155.06484873,0.00023529,2]
[326771434,1715340633280,-154.0995627,0.00023624,2]
[326771435,1715340633289,-155.63140237,0.00023628,2]
[326771436,1715340633299,-400.0,0.00023777,2]
[326771437,1715340633308,-600.0,0.00023783,2]
[326771438,1715340633318,-205.0,0.0002384,2]
[326771439,1715340633327,-218.98273529,0.00023916,2]
[326771440,1715340633337,-432.59885389,0.00024,2]
[326771441,1715340633346,-1072.80775125,0.00024,2]
[326771442,1715340633355,-155.06484873,0.00024195,2]
[326771443,1715340633365,-180.0,0.0002423,2]
[326771444,1715340633374,-716.19253075,0.00024298,2]
[326771445,1715340633384,-218.98273529,0.00024313,2]
[326771446,1715340633396,-154.0995627,0.00024389,2]
[326771447,1715340633411,-205.0,0.000244,2]
[326771448,1715340633421,-573.86873251,0.00024441,2]
[326771449,1715340633430,-2181.77493166,0.00024442,2]
[326771450,1715340633440,-166.67676363,0.00024482,2]
[326771451,1715340633449,-152.97300321,0.00024515,2]
[326771452,1715340633459,-155.06484873,0.00024569,2]
[326771453,1715340633468,-157.37182555,0.00024585,2]
[326771454,1715340633478,-152.97300321,0.00024614,2]